Cogmind - Beta 17 @@@ ROGUE MODE // 2026.08.13 @ 20:31:40 Player: Ev Result: Destroyed by Y-54 Guardian with Gatling Laser Performance ------------- Evolutions (0) 0 Regions Visited (3) 600 Robots Destroyed (25) 125 Value Destroyed (475) 475 Prototype IDs (3) 60 Alien Tech Used (0) 0 Bonus (5100) 5100 TOTAL SCORE: 6360 Bonus ------- Prayed to X0-1V1 5000 Major X0-1V1 Interference 100 Cogmind --------- Core Integrity 0/250 Matter 241/300 Energy 99/100 System Corruption 0% Temperature Cool (6) Movement Rolling (110) Location -7/Recycling Parts ------- > --- POWER (1) -------- (None) > --- PROPULSION (2) --- Subdweller Monowheel > --- UTILITY (2) ------ Light Armor Plating X0-1V1's Piety Tracker > --- WEAPON (2) ------- Subdweller Laser > --- INVENTORY (5) ---- Disposable Heat Sink Scrap Shield Fragment (48) Scrap Shield Fragment (40) Peak State ------------ > --- POWER ------------ Ion Engine > --- PROPULSION ------- Hover Unit Hover Unit > --- UTILITY ---------- Visual Processing Unit X0-1V1's Piety Tracker > --- WEAPON ----------- EM Pulse Gun Beam Cannon > --- INVENTORY -------- Ion Engine Hover Unit Hover Unit Light Armor Plating Grenade Launcher [Rating: 20] Favorites ----------- Power Ion Engine Engine Ion Engine Propulsion Hover Unit Wheel Wheel Hover Unit Hover Unit Utility Visual Processing Unit Device X0-1V1's Piety Tracker Storage Small Storage Unit Processor Visual Processing Unit Hackware Hacking Suite Protection Light Armor Plating Weapon EM Pulse Gun Energy Gun EM Pulse Gun Energy Cannon Beam Cannon Ballistic Gun Assault Rifle Launcher Grenade Launcher Build | -11 -10 -10 -7 ------- Run | Yrd Mat Sub Rec Slots Evolved . | . . . . Power . | . . . . Propulsion . | . . . . Utility . | . . . . Weapon . | . . . . Parts Attached 23 | 6 9 6 2 Power 2 | 1 . 1 . Engine 2 | 1 . 1 . Core . | . . . . Reactor . | . . . . Propulsion 8 | 2 3 2 1 Treads . | . . . . Leg . | . . . . Wheel 3 | 2 . . 1 Hover 5 | . 3 2 . Flight . | . . . . Utility 6 | 1 3 1 1 Device 2 | . 1 1 . Storage 1 | 1 . . . Processor 1 | . 1 . . Hackware 1 | . 1 . . Protection 1 | . . . 1 Artifact . | . . . . Weapon 7 | 2 3 2 . Energy Gun 3 | 1 1 1 . Energy Cannon 1 | . 1 . . Ballistic Gun 2 | 1 . 1 . Ballistic Cannon . | . . . . Launcher 1 | . 1 . . Special Weapon . | . . . . Impact Weapon . | . . . . Slashing Weapon . | . . . . Piercing Weapon . | . . . . Special Melee Weapon . | . . . . Unidentified Prototypes 1 | . 1 . . Parts Lost 11 | . . 10 1 Power 2 | . . 2 . Propulsion 4 | . . 4 . Utility 1 | . . 1 . Weapon 4 | . . 3 1 Highest Loss Streak 10 | . . 10 1 To Critical Strikes . | . . . . Average Backups 4 | 3 5 3 1 Power . | . . . . Propulsion 1 | . 1 1 . Utility 1 | 1 1 1 1 Weapon 1 | 1 1 . . Tool/Special . | . . . . Unused Backups 10 | . 9 . 1 Power 2 | . 2 . . Propulsion 1 | . 1 . . Utility 6 | . 5 . 1 Weapon 1 | . 1 . . Tool/Special . | . . . . Average Slot Usage (%) 86 | . 94 79 62 Engine 11 | . 14 10 . Wheel 3 | . 4 . 8 Hover 20 | . 23 19 . Device 4 | . . 9 14 Storage 2 | . 4 . . Processor 10 | . 9 14 5 Hackware 6 | . 10 . . Energy Gun 12 | . 14 10 14 Energy Cannon 8 | . 9 8 . Ballistic Gun 3 | . 2 3 11 Peak Build Rating 20 | 7 20 20 19 Average Rating 10 | 5 9 14 18 On Entrance 11 | . 7 20 18 Avg Prop Armor Cover (%) . | . . . . Naked Turns . | . . . . Heaviest Build 13 | 13 13 11 9 Greatest Support 20 | 20 20 12 20 Greatest Overweight (x) 2 | . 2 1 1 Average Overweight (x) . | . . . . Largest Inventory Capacity 8 | 8 8 5 5 Average Capacity 5 | 7 5 5 5 Most Carried 8 | 8 8 5 5 Average Carried 4 | 3 5 3 3 Final Capacity 8 | 8 5 5 5 Final Carried 8 | 8 5 5 3 Class Distribution -------------------- 100% | Mutant Dominant Class ---------------- Mutant | -10/Materials Mutant | -10/Subcaves Mutant | -7/Recycling Resources | -11 -10 -10 -7 ----------- Run | Yrd Mat Sub Rec Matter Collected 534 | 333 115 86 . Remotely . | . . . . Salvage Created 761 | 185 358 218 . Parts 52 | 16 22 14 . Haulers Intercepted 2 | . 2 . . Recyclers Shooed . | . . . . Parts Field Recycled . | . . . . Retrieved Matter . | . . . . Parts Self-Destructed 5 | . . 5 . Prevented 3 | . . 3 . Parts Restored . | . . . . Kills | -11 -10 -10 -7 ------- Run | Yrd Mat Sub Rec Combat Hostiles Destroyed 11 | . 4 7 . Guns 5 | . 3 2 . Cannons 4 | . 1 3 . AOE 2 | . . 2 . Classes Destroyed 10 | 3 4 3 . Worker 2 | 2 . . . Tunneler 4 | 4 . . . Hauler 2 | . 2 . . Recycler 1 | 1 . . . Operator 1 | . 1 . . Turret 1 | . . 1 . Watcher 3 | . 3 . . Swarmer 4 | . . 4 . Grunt 6 | . 4 2 . Subdweller 1 | . . 1 . Best Kill Streak 5 | 4 3 5 . Combat Bots Only 5 | . 1 5 . Max Kills in Single Turn 1 | 1 1 1 . Gunslinging . | . . . . Exploded 1 | . . 1 . Melee . | . . . . Uniques/NPCs Destroyed . | . . . . Combat | -11 -10 -10 -7 -------- Run | Yrd Mat Sub Rec Hostile Shots Fired 148 | . 8 128 12 Missed 57 | . 4 50 3 Hits 91 | . 4 78 9 Projectile 91 | . 4 78 9 Critical Strikes 1 | . . 1 . Damage Taken 808 | . 45 710 53 Core 256 | . 12 223 21 Absorbed by Shields . | . . . . Core Remaining (%) 100 | 100 . . . Volleys Fired 73 | 10 27 36 . Largest 2 | 2 2 2 . Hottest 100 | 60 100 100 . Shots Fired 116 | 20 43 53 . Gun 79 | 20 32 27 . Cannon 28 | . 10 18 . Launcher 9 | . 1 8 . Special . | . . . . Kinetic 25 | 10 5 10 . Thermal 43 | 10 15 18 . Explosive 9 | . 1 8 . Electromagnetic 39 | . 22 17 . Robot Hit Streak 14 | 9 14 7 . Robot Miss Streak 3 | 1 1 3 . Penetration Max . | . . . . Secondary Targets . | . . . . Shots Hit Robots 72 | 13 25 34 . Core Hits 34 | 8 12 14 . Critical Kills . | . . . . Critical Parts Destroyed . | . . . . Critical Strikes . | . . . . Melee Attacks . | . . . . Impact . | . . . . Slashing . | . . . . Piercing . | . . . . Sneak Attacks . | . . . . Combat Hostiles . | . . . . Follow-up Attacks . | . . . . Damage Inflicted 1180 | 154 371 655 . Guns 653 | 154 301 198 . Cannons 245 | . 70 175 . Explosions 282 | . . 282 . Melee . | . . . . Ramming . | . . . . Kinetic 188 | 96 25 67 . Thermal 336 | 58 103 175 . Explosive 282 | . . 282 . Electromagnetic 374 | . 243 131 . Impact . | . . . . Slashing . | . . . . Piercing . | . . . . Highest Corruption . | . . . . Average Corruption . | . . . . Corruption Purged . | . . . . Corruption Blocked . | . . . . Overload Shots . | . . . . Overflow Damage 33 | . . 33 . Projectiles 4 | . . 4 . Explosions 29 | . . 29 . Melee . | . . . . Knockbacks . | . . . . Impact . | . . . . Kinetic . | . . . . Secondary . | . . . . Self-Inflicted Damage 70 | . . 70 . Shots 3 | . . 3 . Rammed . | . . . . Targets Rammed . | . . . . Kicked . | . . . . Crushed . | . . . . Highest Temperature 135 | . 135 28 . Average Temperature 42 | . 46 15 . Received Heat Transfer 297 | . 24 255 18 Siege Activations . | . . . . Martial Activations . | . . . . Shielding Activations . | . . . . Robots Disrupted . | . . . . Combat Hostiles . | . . . . Robots Corrupted . | . . . . Combat Hostiles . | . . . . Parts Fried . | . . . . Impact Corruptions . | . . . . Robots Melted . | . . . . Combat Hostiles . | . . . . Parts Melted . | . . . . Heat Transferred 718 | 125 223 370 . Parts Sabotaged . | . . . . Parts Stolen . | . . . . Parts Stripped . | . . . . Power Chain Reactions . | . . . . Alert | -11 -10 -10 -7 ------- Run | Yrd Mat Sub Rec Maximum Alert Level . | . . . . Low Security (%) 100 | 100 100 . 100 Level 1 . | . . . . Level 2 . | . . . . Level 3 . | . . . . Level 4 . | . . . . Level 5 . | . . . . High Security . | . . . . Max Security . | . . . . Peak Influence 99 | 20 99 . 43 Initial 43 | . . . 43 Average 23 | 4 29 . 36 Influence Increases 538 | 35 263 240 . Destroy 0b10 Robot/C 220 | . 80 140 . Destroy 0b10 Robot/NC 65 | 35 30 . . Destroy Leader 60 | . 50 10 . Successful Hack 50 | . 50 . . Select Force Hacks 30 | . 30 . . Disable Machine 15 | . 15 . . Destroy Structure 8 | . 8 . . Lose Combat Pursuer 90 | . . 90 . Influence Decreases 515 | 35 164 248 68 Entered New Map 96 | . . 48 48 Time Decay 309 | 35 164 100 10 Lost Part 110 | . . 100 10 Squads Dispatched 4 | . 4 . . Investigation 3 | . 3 . . Extermination . | . . . . Reinforcement 1 | . 1 . . Assault . | . . . . Garrison . | . . . . Intercept . | . . . . Searches Triggered . | . . . . Construction Impeded . | . . . . Haulers Reinforced . | . . . . Active Scanning Responses . | . . . . Cargo Convoy Interrupts . | . . . . Stealth | -11 -10 -10 -7 --------- Run | Yrd Mat Sub Rec Distress Signals . | . . . . Communications Jammed . | . . . . Distress Signals . | . . . . Times Spotted 26 | . 9 16 1 Peak Tracking Total 6 | . 3 6 1 Tactical Retreats 3 | . . 3 . Traps | -11 -10 -10 -7 ------- Run | Yrd Mat Sub Rec Traps Triggered . | . . . . Indirectly . | . . . . Trap Hack Attempts . | . . . . Triggered . | . . . . Disarmed . | . . . . Reprogrammed . | . . . . Reused . | . . . . Traps Extracted . | . . . . Installed . | . . . . Triggered . | . . . . Machines | -11 -10 -10 -7 ---------- Run | Yrd Mat Sub Rec Machines Disabled 4 | . 1 3 . Max in Single Turn 1 | . 1 1 . Machines Repaired . | . . . . Machines Dismantled . | . . . . Machines Sabotaged . | . . . . Overloaded Fab Kills . | . . . . Hacking | -11 -10 -10 -7 --------- Run | Yrd Mat Sub Rec Machines Accessed 6 | . 5 . 1 Terminals 4 | . 4 . . Fabricators . | . . . . Repair Stations . | . . . . Recycling Units 2 | . 1 . 1 Scanalyzers . | . . . . Garrison Access . | . . . . Total Hacks 20 | . 16 . 4 Successful 13 | . 12 . 1 Failed 7 | . 4 . 3 Catastrophic . | . . . . Database Lockouts . | . . . . Manual 13 | . 13 . . Terminals 14 | . 14 . . Fabricators . | . . . . Repair Stations . | . . . . Recycling Units 6 | . 2 . 4 Scanalyzers . | . . . . Garrison Access . | . . . . Terminal Hacks 5 | . 5 . . Prototype ID Bank 1 | . 1 . . Branch Access Points 1 | . 1 . . Recycling Unit Index 1 | . 1 . . Locate Traps 1 | . 1 . . Registered Components 1 | . 1 . . Fabricator Hacks . | . . . . Repair Station Hacks . | . . . . Recycling Unit Hacks 1 | . . . 1 Report Inventory 1 | . . . 1 Scanalyzer . | . . . . Garrison Access Hacks . | . . . . Unauthorized Hacks 7 | . 7 . . Terminals 5 | . 5 . . Botnet 4 | . 4 . . Operators 1 | . 1 . . Fabricators . | . . . . Repair Stations . | . . . . Recycling Units 2 | . 2 . . Reject 1 | . 1 . . Tunnel 1 | . 1 . . Scanalyzers . | . . . . Garrison Access . | . . . . Data Cores Recovered . | . . . . Used . | . . . . Hacking Detections 5 | . 4 . 1 Full Trace Events 5 | . 4 . 1 Feedback Events . | . . . . Feedback Blocked . | . . . . Robot Schematics Acquired . | . . . . Robots Built . | . . . . Authchips . | . . . . Time . | . . . . Total Robot Build Rating . | . . . . Part Schematics Acquired . | . . . . Parts Built . | . . . . Authchips . | . . . . Time . | . . . . Total Part Build Rating . | . . . . Part Studies Acquired . | . . . . Parts Repaired . | . . . . Time . | . . . . Parts Recycled . | . . . . Recycled Matter . | . . . . Retrieved Matter . | . . . . Retrieved Components . | . . . . Parts Scanalyzed . | . . . . Part Schematics Acquired . | . . . . Parts Damaged . | . . . . Bothacking | -11 -10 -10 -7 ------------ Run | Yrd Mat Sub Rec Used RIF Installer . | . . . . Robots Hacked . | . . . . Non-combat . | . . . . Combat . | . . . . Robot Hacks Applied . | . . . . Relay Couplers Released . | . . . . Fabnet Peak Effective % . | . . . . Robots Rewired . | . . . . Allies Hacked . | . . . . Hacks Repelled . | . . . . Allies | -11 -10 -10 -7 -------- Run | Yrd Mat Sub Rec Total Allies . | . . . . Largest Group . | . . . . Highest-Rated Group . | . . . . Highest-Rated Ally . | . . . . Total Orders . | . . . . Ally Attacks . | . . . . Total Damage . | . . . . Kills . | . . . . Allies Corrupted . | . . . . Allies Melted . | . . . . X0-1V1 Amusement Gains 44 | . 9 35 . Bad Acts 1 | . . 1 . Intel | -11 -10 -10 -7 ------- Run | Yrd Mat Sub Rec Active Infowar (turns) 509 | . 282 216 11 Optics 509 | . 282 216 11 Robot Analysis Total . | . . . . Derelict Logs Recovered . | . . . . Drone Launches . | . . . . Drone Recoveries . | . . . . Exploration | -11 -10 -10 -7 ------------- Run | Yrd Mat Sub Rec Turns Passed 791 | 141 397 216 37 Spaces Moved 718 | 106 428 153 31 Core 57 | 5 . 41 11 Treads . | . . . . Legs . | . . . . Wheels 172 | 101 51 . 20 Hover 489 | . 377 112 . Flight . | . . . . Fastest Speed 50 | 50 56 50 100 Average Speed 65 | 78 60 62 106 Slowest Speed 180 | 80 180 120 110 Overloaded Moves . | . . . . Propulsion Burnouts . | . . . . Robots Hopped . | . . . . Potential Cave-ins . | . . . . Cave-ins Triggered . | . . . . Exploration Rate (%) 19 | 4 55 10 8 Regions Visited 3 Branch Regions 2 Pre-discovered Areas 1 | . 1 . . Known Exits Taken . | . . . . Unknown Exits Taken 3 | 1 1 1 . Scrap Searched . | . . . . Spaces Dug . | . . . . Terrain Destroyed 34 | . 8 26 . Melee . | . . . . Projectile . | . . . . AOE 34 | . 8 26 . Terrain Rammed . | . . . . Walls Destroyed . | . . . . Machines Disabled . | . . . . Actions | -11 -10 -10 -7 --------- Run | Yrd Mat Sub Rec Total 925 | 143 526 221 35 Wait 66 | 8 37 21 . Move 715 | 105 427 152 31 Hop . | . . . . Pick Up 29 | 14 10 5 . Fast Attach 8 | . 6 2 . Attach 12 | 6 . 5 1 Detach . | . . . . Swap 5 | . 4 . 1 Drop 15 | . 15 . . Fire 73 | 10 27 36 . Melee . | . . . . Ram . | . . . . Kick . | . . . . Crush . | . . . . Escape Stasis . | . . . . Rewire 2 | . . . 2 Trap . | . . . . Miscellaneous . | . . . . Route ------- -11/Scrapyard -10/Materials (discovered 4 exits: [*Mat] / *Min x2 / [*Sub]) -10/Subcaves -7/Recycling History --------- Turn | Location | Event 13 | -11/Scrapyard | Discovered new exit (range 16) 142 | -11/Scrapyard | Entered Materials 278 | -10/Materials | Discovered new exit (range 3) 300 | -10/Materials | Build established: Mutant 351 | -10/Materials | Discovered new exit (range 13) 398 | -10/Materials | Identified exit to Mines 530 | -10/Materials | Discovered new exit (range 8) 535 | -10/Materials | Prayed at D.C.S.S. Altar Unit 539 | -10/Materials | Entered Subcaves 540 | -10/Subcaves | Approached by a straggling Scientist 636 | -10/Subcaves | Discovered new exit (range 15) 639 | -10/Subcaves | X0-1V1 upgraded hostiles (x2) 678 | -10/Subcaves | Core integrity fell below 50% 699 | -10/Subcaves | Core integrity fell below 20% 729 | -10/Subcaves | Shifting Twisted Machinery released Sub. Laser 733 | -10/Subcaves | Lost 10 parts (2p4n1u3w) 755 | -10/Subcaves | Entered Recycling 792 | -7/Recycling | Destroyed by Y-54 Guardian with Gatling Laser Last Messages --------------- 00742_ The unstable cave ceiling collapses. LOCATION=UNKNOWN GOAL=ESCAPE 00757_ Connecting with Recycling Unit... 00757_ Current location identified: Recycling >>Recycling(Report) Matter reserves: 0 Inventory: Flak Gun (50%) Hvy. Rocket Launcher (35%) Plasma Cannon (30%) Corrupted Authchip [R/Combat] (100%) 00766_ Discarded Visual Processing Unit. 00780_ Attempting to rewire R-06 Scavenger. 00780_ R-06 Scavenger is unpowered. 00781_ Attempting to rewire R-06 Scavenger. 00781_ R-06 Scavenger is unpowered. 00787_ Y-54 Guardian springs to life. 00787_ Lgt. Assault Rifle destroyed. 00792_ X0-1V1 giggles madly! Map ----- +----------------------------------------------------+ | ????????????????????????????????????????? | | ????????????????????????????????????????? | | ????????????????????????????????????????? | | ????????????????????????????????????????? | | ????????????????????????????????????????? | | ????????????????????????????????????????? | | ????????????????????????????????????????? | | ????????????????????????????????????????? | | ????????????????????????????????????????? | | ????????????????????????????????????????? | | ????????????????????????????????????????? | | ????????????????????????????????????????? | | ????????????????????????????????????????? | | ?#####??????????????????????????????????? | | ?# #??????????????????????????????????? | | ?# #??????????????????????????????????? | | ?# ###????????????????????????????????? | | ?# ""#????????????????????????????????? | | ?# Y"#????????????????????????????????? | | ?# ""#????????????????????????????????? | | ?# ###????????????????????????????????? | | ?# #??????????????????????????????????? | | ?# #??????????????????????????????????? | | ## #####??????????????????????????????? | | # ## ############+#####?????????????? | | # Y @ #?????????????? | | # #?????????????? | | # #?????????????? | | # #####+########### #?????????????? | | #######?# #??????? #?????????????? | | ????????# #??????????????????????? | | ????????# #??????????????????????? | | ????????# #??????????????????????? | | ????????# #??????????????????????? | | ???????# #??????????????????????? | | ???????## #??????????????????????? | | ????????# #?????????????????????? | | ????????# ##?????????????????????? | | ????????##########??????????????????????? | | ????????????????????????????????????????? | | ????????????????????????????????????????? | | ????????????????????????????????????????? | | ????????????????????????????????????????? | | ????????????????????????????????????????? | | ????????????????????????????????????????? | | ????????????????????????????????????????? | | ????????????????????????????????????????? | | ????????????????????????????????????????? | | ????????????????????????????????????????? | | ????????????????????????????????????????? | +----------------------------------------------------+ Best States ------------- Heat Dissipation 25 Energy Generation 10 Energy Capacity 250 Matter Stores 300 Matter Capacity 300 Sight Range 18 Terrain Scan Density 10 Armor Coverage 150 Evasion (%) 53 Offensive Hacking 10 Item Schematics ----------------- None Robot Schematics ------------------ None Fabricated ------------ Nothing Repaired ---------- Nothing Studied --------- None Alien Tech Used ----------------- None Achievements -------------- None Challenges ------------ None Game ------ Seed AluminumBladeCompanion Manual? 0 Play Time 00:15:24 Cumulative 83.9 hours Start 2026.08.13 @ 19:45:51 End 2026.08.13 @ 20:31:40 Sessions 1 Manual Loads 0 Difficulty Rogue Special Mode None Game No. 145 Rogue 145 Adventurer 0 Explorer 0 Win Type - Total 0 Types 0/0/0/0/0/0/0/0/0/0 Lore% 27 Gallery% 35 Achievement% 28 Wizard Run 0 Options --------- Layout 1 ASCII 0 Keyboard 0 Movement Mouse Keybinds 0 Fullscreen 1 Font 24/Smallcaps Map View 50x35 Zoom Use 0% Tactical HUD 1 Map Filters NONE Filters NONE Steam 1 RUN: e636ae1d-5b32-4723-ae6a-6f49a2b1b60a